[Event "FIDE Womens Grand Swiss 2023"]
[Site "Douglas/Isle of Man"]
[Date "2023.11.02"]
[Round "8.9"]
[White "Efroimski, Marsel"]
[Black "Fataliyeva, Ulviyya"]
[Result "1-0"]
[ECO "A14"]
[WhiteElo "2447"]
[BlackElo "2393"]
[Annotator "ChessBase"]
[PlyCount "117"]
[EventDate "2023.10.04"]
[EventType "swiss"]
[EventCountry "GBR"]
[SourceTitle "playchess.com"]
[Source "ChessBase"]
[SourceQuality "1"]
[TimeControl "40/6000+30:20/3000+30:900+30"]

1. Nf3 {[%emt 0:10:05]} d5 {[%emt 0:10:04]} 2. g3 {[%emt 0:00:03]} Nf6 {[%emt 0:00:05]} 3. Bg2 {[%emt 0:00:04]} e6 {[%emt 0:00:05]} 4. O-O {[%emt 0:00:08]} Be7 {[%emt 0:00:05]} 5. c4 {[%emt 0:00:33]} O-O {[%emt 0:00:10]} 6. b3 {[%emt 0:00:04]} c5 {[%emt 0:00:28]} 7. Bb2 {[%emt 0:00:30]} Nc6 {[%emt 0:01:09]} 8. cxd5 {[%emt 0:00:18]} Nxd5 {[%emt 0:00:37]} 9. d4 {[%emt 0:01:49]} cxd4 {[%emt 0:00:05]} 10. Nxd4 {[%emt 0:00:04]} Bd7 {[%emt 0:00:18]} 11. e4 {[%emt 0:02:30]} Ndb4 {[%emt 0:02:15]} 12. a3 {[%emt 0:09:26]} Nxd4 {[%emt 0:03:38]} 13. Qxd4 {[%emt 0:09:40]} e5 {[%emt 0:01:51]} 14. Qd1 {[%emt 0:02:23]} Nc6 {[%emt 0:01:24]} 15. Nc3 {[%emt 0:01:09]} Bc5 {[%emt 0:06:29]} 16. Nd5 {[%emt 0:01:58]} a6 {[%emt 0:04:32]} 17. Rc1 {[%emt 0:03:22]} Ba7 {[%emt 0:03:29]} 18. Kh1 {[%emt 0:05:17]} f6 {[%emt 0:15:49]} 19. f4 {[%emt 0:01:06]} Bd4 {[%emt 0:06:33]} 20. Bxd4 {[%emt 0:06:58]} exd4 {[%emt 0:00:53]} 21. f5 {[%emt 0:07:36]} Be8 {[%emt 0:04:22]} 22. b4 {[%emt 0:01:19]} Qd6 {[%emt 0:02:08]} 23. Qd2 {[%emt 0:02:49]} Bf7 {[%emt 0:03:56]} 24. Rc5 {[%emt 0:02:43]} Rfe8 {[%emt 0:14:26]} 25. Rfc1 {[%emt 0:02:30]} Re5 {[%emt 0:00:28]} 26. a4 {[%emt 0:01:03]} Rae8 {[%emt 0:01:01]} 27. b5 {[%emt 0:01:15]} axb5 {[%emt 0:02:05]} 28. axb5 {[%emt 0:04:02]} Ne7 {[%emt 0:04:52]} 29. Nxe7+ {[%emt 0:10:14]} R5xe7 {[%emt 0:00:20]} 30. Qd3 {[%emt 0:01:01]} h5 {[%emt 0:00:42]} 31. Bf3 {[%emt 0:02:24]} g5 {[%emt 0:03:44]} 32. fxg6 {[%emt 0:00:55]} Bxg6 {[%emt 0:00:02]} 33. Rc8 {[%emt 0:04:56]} Kg7 {[%emt 0:00:34]} 34. Rxe8 {[%emt 0:00:47]} Rxe8 {[%emt 0:00:18]} 35. Qc2 {[%emt 0:09:51]} Re7 {[%emt 0:02:02]} 36. Qc5 {[%emt 0:00:07]} Qxc5 {[%emt 0:10:52]} 37. Rxc5 {[%emt 0:00:02]} Rd7 {[%emt 0:00:39]} 38. b6 {[%emt 0:00:55]} Kf8 {[%emt 0:00:56]} 39. Rc7 {[%emt 0:05:25]} Ke8 {[%emt 0:05:54]} 40. e5 {[%emt 0:01:54]} d3 {[%emt 0:00:34]} 41. e6 {[%emt 0:29:05]} Rh7 {[%emt 0:35:17]} 42. Kg1 {[%emt 0:07:10]} d2 {[%emt 0:02:43]} 43. Kf2 {[%emt 0:01:37]} Be4 {[%emt 0:03:46]} 44. Bd1 {[%emt 0:00:25]} h4 {[%emt 0:02:26]} 45. gxh4 {[%emt 0:02:27]} Kd8 {[%emt 0:03:09]} 46. Ke3 {[%emt 0:00:55]} Bf5 {[%emt 0:02:40]} 47. Rxh7 {[%emt 0:02:05]} Bxh7 {[%emt 0:00:01]} 48. Kxd2 {[%emt 0:00:08]} Ke7 {[%emt 0:03:27]} 49. Bf3 {[%emt 0:00:43]} Bf5 {[%emt 0:00:01]} 50. Bd5 {[%emt 0:04:25]} Bg4 {[%emt 0:00:01]} 51. h5 {[%emt 0:01:24]} Bxh5 {[%emt 0:00:08]} 52. Bxb7 {[%emt 0:00:09]} Kxe6 {[%emt 0:01:17]} 53. Bd5+ {[%emt 0:02:39]} Kd6 {[%emt 0:00:13]} 54. Ke3 {[%emt 0:01:13]} Bg4 {[%emt 0:00:33]} 55. b7 {[%emt 0:00:19]} Kc7 {[%emt 0:00:04]} 56. h4 {[%emt 0:00:07]} Bh5 {[%emt 0:00:54]} 57. Kf4 {[%emt 0:00:07]} Bg6 {[%emt 0:01:48]} 58. Be4 {[%emt 0:00:33]} Bh5 {[%emt 0:00:37]} 59. Kf5 {[%emt 0:00:11]} 1-0

[Event "FIDE Womens Grand Swiss 2023"]
[Site "Douglas/Isle of Man"]
[Date "2023.11.02"]
[Round "8.10"]
[White "Javakhishvili, Lela"]
[Black "Cramling, Pia"]
[Result "1/2-1/2"]
[ECO "D02"]
[WhiteElo "2437"]
[BlackElo "2446"]
[Annotator "ChessBase"]
[PlyCount "85"]
[EventDate "2023.10.04"]
[EventType "swiss"]
[EventCountry "GBR"]
[SourceTitle "playchess.com"]
[Source "ChessBase"]
[SourceQuality "1"]
[TimeControl "40/6000+30:20/3000+30:900+30"]

1. d4 {[%emt 0:10:04]} d5 {[%emt 0:10:08]} 2. Nf3 {[%emt 0:00:25]} Nf6 {[%emt 0:00:23]} 3. Bf4 {[%emt 0:00:15]} c5 {[%emt 0:00:34]} 4. e3 {[%emt 0:00:06]} Nc6 {[%emt 0:00:10]} 5. Nbd2 {[%emt 0:00:07]} Nh5 {[%emt 0:02:47]} 6. dxc5 {[%emt 0:01:09]} Nxf4 {[%emt 0:00:37]} 7. exf4 {[%emt 0:00:05]} Qa5 {[%emt 0:00:18]} 8. c4 {[%emt 0:01:06]} e6 {[%emt 0:00:21]} 9. cxd5 {[%emt 0:03:57]} exd5 {[%emt 0:00:20]} 10. Bd3 {[%emt 0:01:39]} Qxc5 {[%emt 0:10:02]} 11. O-O {[%emt 0:02:34]} Be7 {[%emt 0:00:07]} 12. Rc1 {[%emt 0:11:08]} Qd6 {[%emt 0:00:27]} 13. Ne5 {[%emt 0:01:44]} O-O {[%emt 0:10:19]} 14. Re1 {[%emt 0:02:14]} g6 {[%emt 0:06:51]} 15. Ndf3 {[%emt 0:12:01]} Nxe5 {[%emt 0:11:01]} 16. Nxe5 {[%emt 0:09:16]} Bf6 {[%emt 0:03:17]} 17. Qa4 {[%emt 0:09:53]} Be6 {[%emt 0:02:33]} 18. Rc2 {[%emt 0:01:58]} Rfd8 {[%emt 0:17:17]} 19. h4 {[%emt 0:04:38]} Bd7 {[%emt 0:07:26]} 20. Nxd7 {[%emt 0:10:09]} Qxd7 {[%emt 0:00:32]} 21. Qxd7 {[%emt 0:00:06]} Rxd7 {[%emt 0:00:03]} 22. g3 {[%emt 0:01:00]} Kf8 {[%emt 0:04:35]} 23. Kg2 {[%emt 0:01:13]} Rad8 {[%emt 0:00:52]} 24. h5 {[%emt 0:01:29]} Rd6 {[%emt 0:02:09]} 25. g4 {[%emt 0:04:11]} Rc6 {[%emt 0:04:40]} 26. Rce2 {[%emt 0:00:36]} Rb6 {[%emt 0:00:28]} 27. b3 {[%emt 0:03:24]} gxh5 {[%emt 0:03:19]} 28. g5 {[%emt 0:00:40]} Bc3 {[%emt 0:00:10]} 29. Rc1 {[%emt 0:00:55]} Bb4 {[%emt 0:01:13]} 30. Rh1 {[%emt 0:02:43]} Bd6 {[%emt 0:04:44]} 31. f5 {[%emt 0:01:13]} Bf4 {[%emt 0:03:56]} 32. Rxh5 {[%emt 0:00:13]} h6 {[%emt 0:00:39]} 33. g6 {[%emt 0:00:31]} Bg5 {[%emt 0:00:26]} 34. Rh1 {[%emt 0:01:07]} Kg7 {[%emt 0:02:25]} 35. Rd1 {[%emt 0:03:58]} Rc6 {[%emt 0:00:38]} 36. f4 {[%emt 0:01:23]} Bxf4 {[%emt 0:00:21]} 37. Re7 {[%emt 0:02:58]} Rf8 {[%emt 0:00:50]} 38. Rxb7 {[%emt 0:00:46]} Rc7 {[%emt 0:00:12]} 39. Rxc7 {[%emt 0:00:17]} Bxc7 {[%emt 0:00:01]} 40. Bb1 {[%emt 0:03:28]} fxg6 {[%emt 0:01:26]} 41. fxg6 {[%emt 0:50:29]} Rd8 {[%emt 0:51:09]} 42. b4 {[%emt 0:00:27]} d4 {[%emt 0:00:00]} 43. a4 {[%emt 0:00:00]} 1/2-1/2

[Event "FIDE Womens Grand Swiss 2023"]
[Site "Douglas/Isle of Man"]
[Date "2023.11.02"]
[Round "8.11"]
[White "Dronavalli, Harika"]
[Black "Injac, Teodora"]
[Result "1/2-1/2"]
[ECO "E06"]
[WhiteElo "2502"]
[BlackElo "2426"]
[Annotator "ChessBase"]
[PlyCount "55"]
[EventDate "2023.10.04"]
[EventType "swiss"]
[EventCountry "GBR"]
[SourceTitle "playchess.com"]
[Source "ChessBase"]
[SourceQuality "1"]
[TimeControl "40/6000+30:20/3000+30:900+30"]

1. Nf3 {[%emt 0:10:09]} d5 {[%emt 0:10:22]} 2. d4 {[%emt 0:00:10]} Nf6 {[%emt 0:00:18]} 3. g3 {[%emt 0:00:13]} e6 {[%emt 0:01:32]} 4. Bg2 {[%emt 0:00:52]} Be7 {[%emt 0:00:33]} 5. c4 {[%emt 0:05:04]} O-O {[%emt 0:00:25]} 6. O-O {[%emt 0:07:12]} a5 {[%emt 0:02:26]} 7. Qc2 {[%emt 0:06:14]} c6 {[%emt 0:00:29]} 8. Nbd2 {[%emt 0:03:07]} Na6 {[%emt 0:01:55]} 9. e4 {[%emt 0:07:44]} Nb4 {[%emt 0:01:31]} 10. Qb1 {[%emt 0:00:11]} c5 {[%emt 0:00:23]} 11. e5 {[%emt 0:03:39]} Nd7 {[%emt 0:07:51]} 12. a3 {[%emt 0:03:02]} Nc6 {[%emt 0:00:05]} 13. dxc5 {[%emt 0:04:44]} Nxc5 {[%emt 0:15:10]} 14. b3 {[%emt 0:04:15]} Qb6 {[%emt 0:05:13]} 15. Qc2 {[%emt 0:03:10]} d4 {[%emt 0:08:18]} 16. Rb1 {[%emt 0:01:02]} Rd8 {[%emt 0:01:45]} 17. Bb2 {[%emt 0:01:46]} d3 {[%emt 0:04:39]} 18. Qd1 {[%emt 0:01:36]} Bd7 {[%emt 0:01:32]} 19. Bc3 {[%emt 0:04:18]} Be8 {[%emt 0:02:36]} 20. Qe1 {[%emt 0:01:36]} Na6 {[%emt 0:06:19]} 21. Bb2 {[%emt 0:01:09]} h6 {[%emt 0:05:53]} 22. Qe4 {[%emt 0:04:54]} Nc5 {[%emt 0:07:48]} 23. Qg4 {[%emt 0:09:05]} Kh8 {[%emt 0:00:51]} 24. Bc3 {[%emt 0:06:35]} Na6 {[%emt 0:07:07]} 25. Bb2 {[%emt 0:01:07]} Nc5 {[%emt 0:01:21]} 26. Bc3 {[%emt 0:00:13]} Na6 {[%emt 0:01:05]} 27. Bb2 {[%emt 0:00:13]} Nc5 {[%emt 0:06:44]} 28. Bc3 {[%emt 0:03:43]} 1/2-1/2

[Event "FIDE Womens Grand Swiss 2023"]
[Site "Douglas/Isle of Man"]
[Date "2023.11.02"]
[Round "8.12"]
[White "Gunina, Valentina"]
[Black "Paehtz, Elisabeth"]
[Result "1/2-1/2"]
[ECO "D37"]
[WhiteElo "2439"]
[BlackElo "2484"]
[Annotator "ChessBase"]
[PlyCount "153"]
[EventDate "2023.10.04"]
[EventType "swiss"]
[EventCountry "GBR"]
[SourceTitle "playchess.com"]
[Source "ChessBase"]
[SourceQuality "1"]
[TimeControl "40/6000+30:20/3000+30:900+30"]

1. d4 {[%emt 0:10:07]} d5 {[%emt 0:10:03]} 2. c4 {[%emt 0:00:10]} e6 {[%emt 0:00:04]} 3. Nf3 {[%emt 0:00:08]} Nf6 {[%emt 0:00:06]} 4. Nc3 {[%emt 0:00:08]} Be7 {[%emt 0:00:04]} 5. Bf4 {[%emt 0:00:36]} O-O {[%emt 0:01:32]} 6. e3 {[%emt 0:00:13]} Nbd7 {[%emt 0:00:07]} 7. a3 {[%emt 0:01:19]} c5 {[%emt 0:02:30]} 8. cxd5 {[%emt 0:00:47]} Nxd5 {[%emt 0:00:04]} 9. Nxd5 {[%emt 0:01:20]} exd5 {[%emt 0:00:04]} 10. dxc5 {[%emt 0:00:24]} Nxc5 {[%emt 0:00:04]} 11. Rc1 {[%emt 0:03:04]} Bf5 {[%emt 0:09:35]} 12. Be2 {[%emt 0:03:37]} Ne6 {[%emt 0:05:20]} 13. Be5 {[%emt 0:00:49]} Bf6 {[%emt 0:00:06]} 14. O-O {[%emt 0:01:01]} Bxe5 {[%emt 0:05:05]} 15. Nxe5 {[%emt 0:00:03]} d4 {[%emt 0:08:30]} 16. Bc4 {[%emt 0:02:35]} dxe3 {[%emt 0:02:15]} 17. fxe3 {[%emt 0:00:13]} Qg5 {[%emt 0:02:27]} 18. Qf3 {[%emt 0:01:50]} Bg6 {[%emt 0:01:53]} 19. Nxg6 {[%emt 0:00:08]} hxg6 {[%emt 0:04:22]} 20. Bd5 {[%emt 0:04:01]} Qe5 {[%emt 0:04:38]} 21. h4 {[%emt 0:01:04]} Rad8 {[%emt 0:01:23]} 22. Rcd1 {[%emt 0:03:02]} b6 {[%emt 0:02:21]} 23. b4 {[%emt 0:01:22]} Rd7 {[%emt 0:06:28]} 24. e4 {[%emt 0:07:15]} Rc7 {[%emt 0:03:00]} 25. Rd3 {[%emt 0:01:10]} Rfc8 {[%emt 0:02:56]} 26. Qg3 {[%emt 0:05:13]} Qxg3 {[%emt 0:02:34]} 27. Rxg3 {[%emt 0:00:03]} Rc1 {[%emt 0:03:55]} 28. Rxc1 {[%emt 0:01:57]} Rxc1+ {[%emt 0:00:07]} 29. Kh2 {[%emt 0:00:03]} Nf8 {[%emt 0:15:41]} 30. Rf3 {[%emt 0:04:42]} Rc7 {[%emt 0:00:05]} 31. Kg3 {[%emt 0:02:05]} Nh7 {[%emt 0:04:37]} 32. Bb3 {[%emt 0:01:16]} Nf6 {[%emt 0:01:18]} 33. Kf4 {[%emt 0:00:23]} Re7 {[%emt 0:01:08]} 34. e5 {[%emt 0:00:25]} Nh5+ {[%emt 0:03:26]} 35. Ke4 {[%emt 0:00:15]} Nf6+ {[%emt 0:00:04]} 36. Kd4 {[%emt 0:00:53]} Ng4 {[%emt 0:02:41]} 37. Bd5 {[%emt 0:00:24]} Kf8 {[%emt 0:01:59]} 38. Rc3 {[%emt 0:01:07]} Rd7 {[%emt 0:01:18]} 39. Rg3 {[%emt 0:04:55]} Nh6 {[%emt 0:00:26]} 40. Ke4 {[%emt 0:01:54]} Nf5 {[%emt 0:01:26]} 41. Rc3 {[%emt 0:50:17]} Ne7 {[%emt 0:27:38]} 42. Bb3 {[%emt 0:00:00]} Nf5 {[%emt 0:01:51]} 43. g3 {[%emt 0:00:00]} Ke7 {[%emt 0:00:54]} 44. Bd5 {[%emt 0:00:00]} Nh6 {[%emt 0:08:21]} 45. a4 {[%emt 0:00:00]} Ng4 {[%emt 0:01:31]} 46. a5 {[%emt 0:00:00]} Nf2+ {[%emt 0:02:59]} 47. Kd4 {[%emt 0:00:00]} bxa5 {[%emt 0:02:17]} 48. bxa5 {[%emt 0:00:00]} Ng4 {[%emt 0:00:03]} 49. a6 {[%emt 0:00:00]} Nh6 {[%emt 0:00:21]} 50. Rb3 {[%emt 0:00:00]} f6 {[%emt 0:04:01]} 51. Rb7 {[%emt 0:00:00]} Kd8 {[%emt 0:00:49]} 52. Rb8+ {[%emt 0:00:00]} Ke7 {[%emt 0:00:08]} 53. Kc5 {[%emt 0:00:00]} Rc7+ {[%emt 0:02:18]} 54. Bc6 {[%emt 0:00:00]} fxe5 {[%emt 0:00:02]} 55. g4 {[%emt 0:00:00]} Nxg4 {[%emt 0:02:17]} 56. Rb7 {[%emt 0:05:21]} Kd8 {[%emt 0:00:03]} 57. Kd6 {[%emt 0:00:07]} Ne3 {[%emt 0:01:45]} 58. Be4 {[%emt 0:08:44]} Nc4+ {[%emt 0:00:04]} 59. Kd5 {[%emt 0:00:14]} Ne3+ {[%emt 0:00:26]} 60. Kxe5 {[%emt 0:01:51]} Rxb7 {[%emt 0:00:45]} 61. axb7 {[%emt 0:15:16]} Kc7 {[%emt 0:15:01]} 62. Bxg6 {[%emt 0:00:12]} Kxb7 {[%emt 0:01:44]} 63. Ke6 {[%emt 0:00:22]} Kc7 {[%emt 0:01:11]} 64. Be4 {[%emt 0:01:21]} Ng4 {[%emt 0:00:56]} 65. Kf7 {[%emt 0:01:06]} Nf6 {[%emt 0:00:06]} 66. Bf3 {[%emt 0:01:27]} Kd6 {[%emt 0:00:07]} 67. Kxg7 {[%emt 0:00:11]} Ke7 {[%emt 0:00:03]} 68. Bd1 {[%emt 0:02:08]} a5 {[%emt 0:00:07]} 69. Kg6 {[%emt 0:00:41]} Kf8 {[%emt 0:03:48]} 70. Bb3 {[%emt 0:00:01]} a4 {[%emt 0:00:13]} 71. Ba2 {[%emt 0:01:10]} Ng4 {[%emt 0:00:42]} 72. h5 {[%emt 0:02:29]} a3 {[%emt 0:00:08]} 73. Bb3 {[%emt 0:00:38]} Ne5+ {[%emt 0:00:15]} 74. Kh7 {[%emt 0:00:33]} Ng4 {[%emt 0:00:05]} 75. Kg6 {[%emt 0:01:44]} Ne5+ {[%emt 0:00:05]} 76. Kh6 {[%emt 0:00:11]} Ng4+ {[%emt 0:00:32]} 77. Kg6 {[%emt 0:00:12]} 1/2-1/2

[Event "FIDE Womens Grand Swiss 2023"]
[Site "Douglas/Isle of Man"]
[Date "2023.11.02"]
[Round "8.13"]
[White "Batsiashvili, Nino"]
[Black "Socko, Monika"]
[Result "0-1"]
[ECO "E11"]
[WhiteElo "2475"]
[BlackElo "2380"]
[Annotator "ChessBase"]
[PlyCount "158"]
[EventDate "2023.10.04"]
[EventType "swiss"]
[EventCountry "GBR"]
[SourceTitle "playchess.com"]
[Source "ChessBase"]
[SourceQuality "1"]
[TimeControl "40/6000+30:20/3000+30:900+30"]

1. d4 {[%emt 0:10:02]} Nf6 {[%emt 0:10:06]} 2. c4 {[%emt 0:00:03]} e6 {[%emt 0:00:07]} 3. Nf3 {[%emt 0:00:04]} Bb4+ {[%emt 0:00:13]} 4. Bd2 {[%emt 0:00:09]} Qe7 {[%emt 0:00:12]} 5. e3 {[%emt 0:01:37]} b6 {[%emt 0:01:47]} 6. Be2 {[%emt 0:01:05]} Bb7 {[%emt 0:00:47]} 7. O-O {[%emt 0:00:07]} Bxd2 {[%emt 0:02:11]} 8. Nfxd2 {[%emt 0:00:39]} O-O {[%emt 0:01:10]} 9. Nc3 {[%emt 0:00:17]} c5 {[%emt 0:03:17]} 10. Bf3 {[%emt 0:02:50]} Bxf3 {[%emt 0:06:19]} 11. Nxf3 {[%emt 0:05:11]} d6 {[%emt 0:07:47]} 12. Qa4 {[%emt 0:11:01]} Rc8 {[%emt 0:02:04]} 13. Rad1 {[%emt 0:01:50]} Nbd7 {[%emt 0:02:40]} 14. Qa3 {[%emt 0:05:45]} Qf8 {[%emt 0:12:56]} 15. Rd2 {[%emt 0:02:36]} cxd4 {[%emt 0:02:58]} 16. Rxd4 {[%emt 0:00:04]} Ne5 {[%emt 0:01:28]} 17. Nd2 {[%emt 0:02:20]} Nc6 {[%emt 0:04:16]} 18. Rxd6 {[%emt 0:03:11]} Ne8 {[%emt 0:00:18]} 19. Rd3 {[%emt 0:01:09]} Qxa3 {[%emt 0:00:05]} 20. bxa3 {[%emt 0:00:02]} Ne5 {[%emt 0:08:14]} 21. Rd4 {[%emt 0:00:16]} Nc6 {[%emt 0:00:03]} 22. Rf4 {[%emt 0:01:20]} Nd6 {[%emt 0:04:12]} 23. Nb5 {[%emt 0:01:29]} Rd8 {[%emt 0:00:56]} 24. Nxd6 {[%emt 0:01:49]} Rxd6 {[%emt 0:00:04]} 25. Nb3 {[%emt 0:00:12]} Rd3 {[%emt 0:04:27]} 26. Rc1 {[%emt 0:04:24]} e5 {[%emt 0:07:01]} 27. Rh4 {[%emt 0:01:26]} a5 {[%emt 0:01:19]} 28. c5 {[%emt 0:04:30]} a4 {[%emt 0:02:24]} 29. Na1 {[%emt 0:18:19]} Rad8 {[%emt 0:01:23]} 30. Rf1 {[%emt 0:01:05]} b5 {[%emt 0:02:38]} 31. Nc2 {[%emt 0:00:05]} Rc3 {[%emt 0:00:12]} 32. Nb4 {[%emt 0:00:04]} Rxc5 {[%emt 0:00:17]} 33. Nxc6 {[%emt 0:00:51]} Rxc6 {[%emt 0:00:02]} 34. Rb4 {[%emt 0:00:09]} Rc5 {[%emt 0:05:27]} 35. g4 {[%emt 0:05:43]} Rd2 {[%emt 0:01:39]} 36. Rfb1 {[%emt 0:00:11]} f6 {[%emt 0:00:06]} 37. Rxb5 {[%emt 0:02:01]} Rxb5 {[%emt 0:01:12]} 38. Rxb5 {[%emt 0:00:01]} Rxa2 {[%emt 0:00:05]} 39. Rb8+ {[%emt 0:04:13]} Kf7 {[%emt 0:00:05]} 40. Rb7+ {[%emt 0:00:02]} Kg6 {[%emt 0:00:44]} 41. Ra7 {[%emt 0:50:43]} Rxa3 {[%emt 0:50:07]} 42. Kg2 {[%emt 0:00:07]} Ra1 {[%emt 0:01:33]} 43. h4 {[%emt 0:04:13]} a3 {[%emt 0:03:35]} 44. Kf3 {[%emt 0:06:16]} a2 {[%emt 0:06:03]} 45. h5+ {[%emt 0:00:24]} Kh6 {[%emt 0:00:13]} 46. Ke4 {[%emt 0:00:29]} Rg1 {[%emt 0:00:42]} 47. Rxa2 {[%emt 0:00:34]} Rxg4+ {[%emt 0:00:04]} 48. f4 {[%emt 0:01:33]} Rh4 {[%emt 0:02:50]} 49. Ra5 {[%emt 0:03:42]} exf4 {[%emt 0:00:27]} 50. exf4 {[%emt 0:00:02]} Rxh5 {[%emt 0:00:07]} 51. Ra1 {[%emt 0:00:10]} Rh4 {[%emt 0:01:04]} 52. Kf3 {[%emt 0:00:13]} g5 {[%emt 0:00:39]} 53. fxg5+ {[%emt 0:00:06]} fxg5 {[%emt 0:00:04]} 54. Ra7 {[%emt 0:00:32]} Rb4 {[%emt 0:00:30]} 55. Kg3 {[%emt 0:00:05]} Kg6 {[%emt 0:00:10]} 56. Ra3 {[%emt 0:00:20]} Rb6 {[%emt 0:00:27]} 57. Kh3 {[%emt 0:00:25]} h5 {[%emt 0:00:13]} 58. Rc3 {[%emt 0:00:22]} h4 {[%emt 0:00:15]} 59. Rc8 {[%emt 0:00:14]} Rb3+ {[%emt 0:00:07]} 60. Kg2 {[%emt 0:00:01]} Re3 {[%emt 0:00:47]} 61. Ra8 {[%emt 0:15:14]} Kf5 {[%emt 0:15:17]} 62. Kf2 {[%emt 0:00:32]} Re4 {[%emt 0:00:14]} 63. Kf3 {[%emt 0:00:05]} Rf4+ {[%emt 0:00:52]} 64. Kg2 {[%emt 0:00:02]} Kg4 {[%emt 0:00:14]} 65. Ra3 {[%emt 0:00:05]} Rb4 {[%emt 0:00:16]} 66. Ra2 {[%emt 0:00:04]} h3+ {[%emt 0:01:29]} 67. Kf2 {[%emt 0:00:05]} Kh4 {[%emt 0:00:31]} 68. Ra8 {[%emt 0:00:04]} Rb2+ {[%emt 0:01:10]} 69. Kg1 {[%emt 0:00:52]} Re2 {[%emt 0:01:32]} 70. Ra4+ {[%emt 0:01:27]} g4 {[%emt 0:00:19]} 71. Rb4 {[%emt 0:00:11]} Kg3 {[%emt 0:00:33]} 72. Rb3+ {[%emt 0:00:02]} Kf4 {[%emt 0:00:05]} 73. Rb4+ {[%emt 0:00:26]} Kf3 {[%emt 0:00:06]} 74. Rb3+ {[%emt 0:00:31]} Re3 {[%emt 0:00:34]} 75. Rb1 {[%emt 0:00:53]} g3 {[%emt 0:00:39]} 76. Rf1+ {[%emt 0:00:16]} Ke4 {[%emt 0:01:41]} 77. Ra1 {[%emt 0:00:06]} Rd3 {[%emt 0:00:41]} 78. Rb1 {[%emt 0:00:22]} Kf3 {[%emt 0:00:22]} 79. Re1 {[%emt 0:00:21]} Rd6 {[%emt 0:02:20]} 0-1

[Event "FIDE Womens Grand Swiss 2023"]
[Site "Douglas/Isle of Man"]
[Date "2023.11.02"]
[Round "8.14"]
[White "Wagner, Dinara"]
[Black "Kamalidenova, Meruert"]
[Result "1/2-1/2"]
[ECO "E06"]
[WhiteElo "2461"]
[BlackElo "2351"]
[Annotator "ChessBase"]
[PlyCount "71"]
[EventDate "2023.10.04"]
[EventType "swiss"]
[EventCountry "GBR"]
[SourceTitle "playchess.com"]
[Source "ChessBase"]
[SourceQuality "1"]
[TimeControl "40/6000+30:20/3000+30:900+30"]

1. d4 {[%emt 0:10:03]} Nf6 {[%emt 0:10:05]} 2. c4 {[%emt 0:00:04]} e6 {[%emt 0:00:04]} 3. Nf3 {[%emt 0:00:11]} d5 {[%emt 0:00:05]} 4. g3 {[%emt 0:00:12]} Be7 {[%emt 0:00:05]} 5. Bg2 {[%emt 0:00:45]} O-O {[%emt 0:00:07]} 6. Qb3 {[%emt 0:00:29]} c6 {[%emt 0:03:00]} 7. O-O {[%emt 0:00:20]} a5 {[%emt 0:00:49]} 8. Bf4 {[%emt 0:01:17]} Nbd7 {[%emt 0:01:27]} 9. Nc3 {[%emt 0:04:36]} b6 {[%emt 0:01:41]} 10. cxd5 {[%emt 0:00:22]} exd5 {[%emt 0:01:20]} 11. Ne5 {[%emt 0:08:30]} Bb7 {[%emt 0:03:11]} 12. Rfd1 {[%emt 0:00:18]} b5 {[%emt 0:05:14]} 13. e4 {[%emt 0:21:14]} Nb6 {[%emt 0:10:15]} 14. Rac1 {[%emt 0:14:15]} b4 {[%emt 0:05:43]} 15. exd5 {[%emt 0:06:21]} cxd5 {[%emt 0:09:11]} 16. Nb5 {[%emt 0:03:12]} a4 {[%emt 0:01:03]} 17. Qf3 {[%emt 0:05:34]} Nc8 {[%emt 0:11:18]} 18. Rc7 {[%emt 0:14:05]} Rb8 {[%emt 0:04:07]} 19. Bg5 {[%emt 0:08:32]} Ba8 {[%emt 0:03:46]} 20. Bxf6 {[%emt 0:00:30]} Bxf6 {[%emt 0:00:53]} 21. Rd7 {[%emt 0:00:16]} Qa5 {[%emt 0:01:13]} 22. Nc7 {[%emt 0:02:29]} Bxe5 {[%emt 0:08:25]} 23. Nxa8 {[%emt 0:00:06]} Qxa8 {[%emt 0:07:24]} 24. dxe5 {[%emt 0:00:18]} b3 {[%emt 0:00:09]} 25. e6 {[%emt 0:05:21]} Nb6 {[%emt 0:04:24]} 26. Rxf7 {[%emt 0:00:02]} bxa2 {[%emt 0:00:21]} 27. Rxf8+ {[%emt 0:01:04]} Rxf8 {[%emt 0:00:08]} 28. Qa3 {[%emt 0:00:01]} Qc6 {[%emt 0:02:00]} 29. e7 {[%emt 0:02:26]} Re8 {[%emt 0:00:22]} 30. Re1 {[%emt 0:00:04]} Kf7 {[%emt 0:02:14]} 31. Bh3 {[%emt 0:01:44]} a1=Q {[%emt 0:03:40]} 32. Qf3+ {[%emt 0:01:13]} Qf6 {[%emt 0:03:12]} 33. Qh5+ {[%emt 0:00:12]} Qg6 {[%emt 0:00:07]} 34. Qf3+ {[%emt 0:00:08]} Qf6 {[%emt 0:00:07]} 35. Qh5+ {[%emt 0:00:44]} Qg6 {[%emt 0:00:04]} 36. Qf3+ {[%emt 0:00:52]} 1/2-1/2

[Event "FIDE Womens Grand Swiss 2023"]
[Site "Douglas/Isle of Man"]
[Date "2023.11.02"]
[Round "8.15"]
[White "Mammadzada, Gunay"]
[Black "Terbe, Julianna"]
[Result "1-0"]
[ECO "D45"]
[WhiteElo "2441"]
[BlackElo "2266"]
[Annotator "ChessBase"]
[PlyCount "61"]
[EventDate "2023.10.04"]
[EventType "swiss"]
[EventCountry "GBR"]
[SourceTitle "playchess.com"]
[Source "ChessBase"]
[SourceQuality "1"]
[TimeControl "40/6000+30:20/3000+30:900+30"]

1. d4 {[%emt 0:10:13]} d5 {[%emt 0:10:13]} 2. c4 {[%emt 0:00:17]} c6 {[%emt 0:00:05]} 3. Nc3 {[%emt 0:00:12]} Nf6 {[%emt 0:00:12]} 4. e3 {[%emt 0:00:13]} e6 {[%emt 0:00:39]} 5. Nf3 {[%emt 0:00:14]} a6 {[%emt 0:00:07]} 6. b3 {[%emt 0:00:10]} Bb4 {[%emt 0:00:19]} 7. Bd2 {[%emt 0:00:07]} Nbd7 {[%emt 0:00:05]} 8. Bd3 {[%emt 0:00:09]} O-O {[%emt 0:00:15]} 9. O-O {[%emt 0:00:04]} Bd6 {[%emt 0:00:24]} 10. e4 {[%emt 0:04:11]} dxc4 {[%emt 0:01:12]} 11. Bxc4 {[%emt 0:15:12]} e5 {[%emt 0:02:04]} 12. d5 {[%emt 0:07:03]} Nc5 {[%emt 0:17:06]} 13. dxc6 {[%emt 0:03:33]} bxc6 {[%emt 0:02:25]} 14. Qc2 {[%emt 0:09:10]} Bg4 {[%emt 0:08:17]} 15. Ne1 {[%emt 0:03:24]} Ne6 {[%emt 0:03:48]} 16. f3 {[%emt 0:06:31]} Nd4 {[%emt 0:01:49]} 17. Qd3 {[%emt 0:02:16]} Bc5 {[%emt 0:06:45]} 18. Kh1 {[%emt 0:01:08]} Be6 {[%emt 0:02:24]} 19. Na4 {[%emt 0:00:34]} Ba7 {[%emt 0:01:47]} 20. Bb4 {[%emt 0:10:22]} Re8 {[%emt 0:04:30]} 21. Bxe6 {[%emt 0:04:23]} Rxe6 {[%emt 0:04:41]} 22. Nc5 {[%emt 0:00:19]} Nh5 {[%emt 0:15:43]} 23. Nxe6 {[%emt 0:06:51]} Qh4 {[%emt 0:00:28]} 24. f4 {[%emt 0:02:30]} fxe6 {[%emt 0:05:07]} 25. fxe5 {[%emt 0:01:26]} Ne2 {[%emt 0:09:36]} 26. Rf3 {[%emt 0:00:13]} Nhf4 {[%emt 0:06:02]} 27. Qxa6 {[%emt 0:06:55]} Qd8 {[%emt 0:00:06]} 28. Qc4 {[%emt 0:00:55]} Qg5 {[%emt 0:01:58]} 29. Rd1 {[%emt 0:02:29]} Qxe5 {[%emt 0:04:06]} 30. Qxc6 {[%emt 0:01:12]} Rb8 {[%emt 0:01:51]} 31. Bd6 {[%emt 0:00:55]} 1-0